fUSD/lending_fUSD_20240503
["ID","MTS","AMOUNT","RATE_DAILY","PERIOD"]
[325322223,1714722638085,-262.6012182,0.00028,2]
[325322224,1714722638095,-1000.0,0.00028018,14]
[325322225,1714722638105,-500.0,0.000282,14]
[325322226,1714722638116,-300.0,0.000282,2]
[325322227,1714722638127,-154.51082582,0.00028261,2]
[325322228,1714722638137,-153.7924358,0.00028299,3]
[325322229,1714722638148,-1000.0,0.00028328,14]
[325322230,1714722638160,-685.0,0.000284,2]
[325322231,1714722638170,-2819.32,0.00028493,4]
[325322232,1714722638180,-151.69339481,0.00028495,2]
[325322233,1714722638189,-1774.16,0.000285,2]
[325322234,1714722638200,-1462.8,0.000285,2]
[325322235,1714722638210,-165.12,0.00028604,120]
[325322236,1714722638220,-1000.0,0.00028638,14]
[325322237,1714722638230,-162.60740325,0.00028658,2]
[325322238,1714722638244,-152.4551314,0.00028689,2]
[325322239,1714722638254,-151.87422436,0.00028689,2]
[325322242,1714722638264,-169.89943949,0.00028689,2]
[325322245,1714722638274,-233.08814576,0.00028689,2]
[325322247,1714722638283,-230.66067956,0.00028689,2]
[325322248,1714722638296,-188.91776928,0.00028689,2]
[325322249,1714722638307,-6188.71536021,0.00028689,2]
[325322250,1714722638320,-2437.83256212,0.00028689,2]
[325322251,1714722638330,-1000.0,0.00028718,2]
[325322252,1714722638340,-506.0,0.00028755,5]
[325322253,1714722638350,-1011.14,0.00028755,2]
[325322254,1714722638360,-1011.14,0.00028755,2]
[325322255,1714722638369,-1011.14,0.00028755,2]
[325322256,1714722638379,-1011.14,0.00028755,2]
[325322257,1714722638388,-1011.14,0.00028755,2]
[325322258,1714722638399,-1011.14,0.00028755,2]
[325322259,1714722638411,-1011.14,0.00028755,2]
[325322260,1714722638421,-1011.14,0.00028755,2]
[325322261,1714722638430,-1011.14,0.00028755,2]
[325322262,1714722638439,-1011.14,0.00028755,2]
[325322263,1714722638448,-6282.14,0.00028757,2]
[325322264,1714722638458,-209.0647054,0.00028779,2]
[325322265,1714722638467,-164.48,0.00028779,2]
[325322266,1714722638476,-164.48,0.00028779,2]
[325322267,1714722638486,-164.48,0.00028779,2]
[325322268,1714722638496,-164.48,0.00028779,2]
[325322269,1714722638505,-164.48,0.00028779,2]
[325322270,1714722638514,-164.48,0.00028779,2]
[325322271,1714722638524,-164.48,0.00028779,2]
[325322272,1714722638533,-6282.14,0.00028788,2]
[325322273,1714722638542,-6282.14,0.00028788,2]
[325322274,1714722638552,-6282.14,0.00028788,2]
[325322275,1714722638561,-6282.14,0.00028788,2]
[325322276,1714722638571,-6282.14,0.00028788,2]
[325322277,1714722638580,-6282.14,0.00028788,2]
[325322278,1714722638590,-6282.14,0.00028788,2]
[325322279,1714722638599,-6282.14,0.00028788,2]
[325322280,1714722638609,-6282.14,0.00028788,2]
[325322281,1714722638619,-123947.08027346,0.00028789,30]
[325322282,1714722638633,-2534.1497,0.00028789,30]
[325322283,1714722638644,-5919.39999999,0.00028789,30]
[325322284,1714722638657,-61157.67999996,0.00028789,30]
[325322285,1714722638740,-544216.60922694,0.00028789,30]
[325322286,1714722638750,-499.999999,0.00028789,2]
[325322287,1714722638760,-685.0,0.00028789,30]
[325322288,1714722638770,-825.0,0.00028789,120]
[325322289,1714722638780,-7438.75997627,0.00028789,7]
[325322290,1714722638790,-11261.8899717,0.00028789,30]
[325322291,1714722638799,-178.0,0.00028789,120]
[325322292,1714722638809,-334.0351,0.00028789,30]
[325322293,1714722638819,-7239.01919035,0.00028789,120]
[325322294,1714722638828,-999.28732916,0.00028789,120]
[325322295,1714722638838,-206.57279412,0.00028789,60]
[325322296,1714722638847,-191.0,0.00028789,30]
[325322297,1714722638857,-4440.16839284,0.00028789,30]
[325322298,1714722638867,-1176641.35207836,0.00028789,30]
[325322299,1714722638876,-268.19875806,0.00028789,120]
[325322300,1714722638886,-6257.45379796,0.00028789,120]
[325322301,1714722638895,-30064.69677749,0.00028789,120]
[325322302,1714722638906,-235.20411527,0.00028789,2]
[325322303,1714722638915,-314351.67117907,0.00028789,120]
[325322304,1714722638924,-703.22712887,0.00028789,2]
[325322305,1714722638934,-48049.74281386,0.00028789,30]
[325322306,1714722638944,-153.94736836,0.00028789,2]
[325322307,1714722638954,-597.38446573,0.00028789,120]
[325322308,1714722638963,-1146.09005001,0.00028789,2]
[325322309,1714722638972,-150.0,0.00028789,2]
[325322310,1714722638982,-150.0,0.00028789,2]
[325322311,1714722638991,-200.0,0.00028789,2]
[325322312,1714722639000,-1083.0,0.00028789,30]
[325322313,1714722639010,-150.62044565,0.00028789,2]
[325322314,1714722639019,-150.62044565,0.00028789,2]
[325322315,1714722639029,-150.62044565,0.00028789,2]
[325322316,1714722639037,-150.62044565,0.00028789,2]
[325322317,1714722639047,-150.62044565,0.00028789,2]
[325322318,1714722639057,-150.62044565,0.00028789,2]
[325322319,1714722639066,-150.62044565,0.00028789,2]
[325322320,1714722639076,-155.0,0.00028789,30]
[325322321,1714722639085,-1604.2979479,0.00028789,120]
[325322322,1714722639094,-163.478102,0.00028789,7]
[325322323,1714722639104,-163.478102,0.00028789,7]
[325322324,1714722639115,-163.478102,0.00028789,7]
[325322325,1714722639125,-163.478102,0.00028789,7]
[325322326,1714722639135,-156.03786,0.00028789,7]
[325322327,1714722639145,-156.03786,0.00028789,7]
[325322328,1714722639156,-153.456011,0.00028789,7]
[325322329,1714722639165,-153.456011,0.00028789,7]
[325322330,1714722639175,-156.03786,0.00028789,7]
[325322331,1714722639184,-156.03786,0.00028789,7]
[325322332,1714722639194,-153.456011,0.00028789,7]
[325322333,1714722639204,-153.456011,0.00028789,7]
[325322334,1714722639214,-237.016386,0.00028789,7]
[325322335,1714722639224,-237.016386,0.00028789,7]
[325322336,1714722639233,-237.016386,0.00028789,7]
[325322337,1714722639249,-237.016386,0.00028789,7]
[325322338,1714722639258,-258.723355,0.00028789,7]
[325322339,1714722639268,-258.723355,0.00028789,7]
[325322340,1714722639278,-183.458591,0.00028789,7]
[325322341,1714722639289,-183.458591,0.00028789,7]
[325322342,1714722639299,-258.723355,0.00028789,7]
[325322343,1714722639311,-151.0,0.00028789,7]
[325322344,1714722639320,-258.723355,0.00028789,7]
[325322345,1714722639329,-151.0,0.00028789,7]
[325322346,1714722639339,-151.0,0.00028789,7]
[325322347,1714722639348,-151.0,0.00028789,7]
[325322348,1714722639358,-183.458591,0.00028789,7]
[325322349,1714722639368,-151.0,0.00028789,7]
[325322350,1714722639378,-151.0,0.00028789,7]
[325322351,1714722639389,-183.458591,0.00028789,7]
[325322352,1714722639398,-151.0,0.00028789,7]
[325322353,1714722639409,-151.0,0.00028789,7]
[325322354,1714722639419,-151.0,0.00028789,7]
[325322355,1714722639429,-151.0,0.00028789,7]
[325322356,1714722639439,-151.0,0.00028789,7]
[325322357,1714722639448,-151.0,0.00028789,7]
[325322358,1714722639457,-968.673926,0.00028789,7]
[325322359,1714722639467,-968.673926,0.00028789,7]
[325322360,1714722639478,-968.673926,0.00028789,7]
[325322361,1714722639488,-968.673926,0.00028789,7]
[325322362,1714722639497,-696.488061,0.00028789,7]
[325322363,1714722639507,-696.488061,0.00028789,7]
[325322364,1714722639516,-696.488061,0.00028789,7]
[325322365,1714722639526,-696.488061,0.00028789,7]
[325322366,1714722639535,-151.0,0.00028789,7]
[325322367,1714722639545,-151.0,0.00028789,7]
[325322368,1714722639554,-270.077165,0.00028789,7]
[325322370,1714722639564,-151.0,0.00028789,7]
[325322372,1714722639573,-151.0,0.00028789,7]
[325322374,1714722639582,-151.0,0.00028789,7]
[325322376,1714722639592,-151.0,0.00028789,7]
[325322378,1714722639601,-267.403535,0.00028789,7]
[325322380,1714722639610,-267.403535,0.00028789,7]
[325322382,1714722639620,-151.0,0.00028789,7]
[325322384,1714722639630,-151.0,0.00028789,7]
[325322386,1714722639639,-267.403535,0.00028789,7]
[325322387,1714722639649,-267.403535,0.00028789,7]
[325322388,1714722639662,-8541.306709,0.00028789,7]
[325322389,1714722639671,-8541.306709,0.00028789,7]
[325322390,1714722639680,-8541.306709,0.00028789,7]
[325322391,1714722639689,-8541.306709,0.00028789,7]
[325322392,1714722639698,-276.394874,0.00028789,7]
[325322393,1714722639707,-276.394874,0.00028789,7]
[325322394,1714722639716,-215.386913,0.00028789,7]
[325322395,1714722639726,-215.386913,0.00028789,7]
[325322396,1714722639736,-276.394874,0.00028789,7]
[325322397,1714722639746,-276.394874,0.00028789,7]
[325322398,1714722639756,-151.0,0.00028789,7]
[325322399,1714722639765,-151.0,0.00028789,7]
[325322401,1714722639776,-215.386913,0.00028789,7]
[325322402,1714722639785,-753.220237,0.00028789,7]
[325322403,1714722639794,-215.386913,0.00028789,7]
[325322404,1714722639804,-753.220237,0.00028789,7]
[325322405,1714722639814,-151.0,0.00028789,7]
[325322406,1714722639824,-151.0,0.00028789,7]
[325322407,1714722639834,-753.220237,0.00028789,7]
[325322408,1714722639844,-753.220237,0.00028789,7]
[325322409,1714722639853,-151.0,0.00028789,7]
[325322410,1714722639862,-151.0,0.00028789,7]
[325322411,1714722639871,-162.608132,0.00028789,7]
[325322412,1714722639882,-162.608132,0.00028789,7]
[325322413,1714722639891,-162.608132,0.00028789,7]
[325322414,1714722639901,-162.608132,0.00028789,7]
[325322415,1714722639917,-221.974808,0.00028789,7]
[325322416,1714722639926,-221.974808,0.00028789,7]
[325322417,1714722639935,-221.974808,0.00028789,7]
[325322418,1714722639944,-221.974808,0.00028789,7]
[325322419,1714722639953,-230.089133,0.00028789,7]
[325322420,1714722639962,-230.089133,0.00028789,7]
[325322421,1714722639971,-292.160935,0.00028789,7]
[325322422,1714722639980,-230.089133,0.00028789,7]
[325322423,1714722639990,-230.089133,0.00028789,7]
[325322424,1714722639999,-292.160935,0.00028789,7]
[325322425,1714722640012,-151.0,0.00028789,7]
[325322426,1714722640022,-151.0,0.00028789,7]
[325322427,1714722640031,-292.160935,0.00028789,7]
[325322428,1714722640043,-292.160935,0.00028789,7]
[325322429,1714722640052,-151.0,0.00028789,7]
[325322430,1714722640062,-1061.510086,0.00028789,7]
[325322431,1714722640072,-151.0,0.00028789,7]
[325322432,1714722640081,-1061.510086,0.00028789,7]
[325322433,1714722640091,-602.609044,0.00028789,7]
[325322434,1714722640100,-602.609044,0.00028789,7]
[325322435,1714722640110,-1061.510086,0.00028789,7]
[325322436,1714722640124,-602.609044,0.00028789,7]
[325322437,1714722640133,-1061.510086,0.00028789,7]
[325322438,1714722640143,-602.609044,0.00028789,7]
[325322439,1714722640152,-214.115582,0.00028789,7]
[325322440,1714722640164,-214.115582,0.00028789,7]
[325322441,1714722640174,-214.115582,0.00028789,7]
[325322442,1714722640183,-214.115582,0.00028789,7]
[325322443,1714722640193,-151.0,0.00028789,7]
[325322444,1714722640203,-151.0,0.00028789,7]
[325322445,1714722640213,-775.869055,0.00028789,7]
[325322446,1714722640223,-775.869055,0.00028789,7]
[325322447,1714722640232,-775.869055,0.00028789,7]
[325322448,1714722640251,-775.869055,0.00028789,7]
[325322449,1714722640267,-151.0,0.00028789,7]
[325322450,1714722640276,-789.489464,0.00028789,7]
[325322451,1714722640286,-151.0,0.00028789,7]
[325322452,1714722640295,-789.489464,0.00028789,7]
[325322453,1714722640305,-789.489464,0.00028789,7]
[325322454,1714722640314,-789.489464,0.00028789,7]
[325322455,1714722640324,-668.87,0.000288,2]
[325322456,1714722640334,-1011.14,0.00028899,2]
[325322457,1714722640344,-6282.14,0.00028899,2]
[325322458,1714722640354,-111086.55202096,0.000289,2]
[325322459,1714722640364,-95810.38124664,0.000289,2]
[325322460,1714722640374,-163.478102,0.000289,7]
[325322461,1714722640384,-163.478102,0.000289,7]
[325322462,1714722640393,-156.03786,0.000289,7]
[325322463,1714722640406,-153.456011,0.000289,7]
[325322464,1714722640416,-156.03786,0.000289,7]
[325322465,1714722640425,-153.456011,0.000289,7]
[325322466,1714722640434,-237.016386,0.000289,7]
[325322467,1714722640444,-237.016386,0.000289,7]
[325322468,1714722640453,-258.723355,0.000289,7]
[325322469,1714722640463,-183.458591,0.000289,7]
[325322470,1714722640471,-258.723355,0.000289,7]
[325322471,1714722640481,-151.0,0.000289,7]
[325322472,1714722640740,-151.0,0.000289,7]
[325322473,1714722640750,-183.458591,0.000289,7]
[325322474,1714722640760,-151.0,0.000289,7]
[325322475,1714722640771,-197.952774,0.000289,7]
[325322476,1714722640781,-151.0,0.000289,7]
[325322477,1714722640791,-151.0,0.000289,7]
[325322478,1714722640802,-968.673926,0.000289,7]
[325322479,1714722640812,-968.673926,0.000289,7]
[325322480,1714722640822,-696.488061,0.000289,7]
[325322481,1714722640832,-696.488061,0.000289,7]
[325322482,1714722640842,-151.0,0.000289,7]
[325322483,1714722640851,-151.0,0.000289,7]
[325322484,1714722640861,-151.0,0.000289,7]
[325322485,1714722640870,-267.403535,0.000289,7]
[325322486,1714722640880,-151.0,0.000289,7]
[325322487,1714722640890,-267.403535,0.000289,7]
[325322488,1714722640900,-8541.306709,0.000289,7]
[325322489,1714722640914,-8541.306709,0.000289,7]
[325322490,1714722640923,-276.394874,0.000289,7]
[325322491,1714722640932,-215.386913,0.000289,7]
[325322492,1714722640942,-276.394874,0.000289,7]
[325322493,1714722640952,-151.0,0.000289,7]
[325322494,1714722640961,-215.386913,0.000289,7]
[325322496,1714722640970,-753.220237,0.000289,7]
[325322497,1714722640979,-151.0,0.000289,7]
[325322498,1714722640988,-753.220237,0.000289,7]
[325322499,1714722640997,-151.0,0.000289,7]
[325322500,1714722641007,-162.608132,0.000289,7]
[325322501,1714722641017,-162.608132,0.000289,7]
[325322502,1714722641028,-221.974808,0.000289,7]
[325322503,1714722641038,-221.974808,0.000289,7]
[325322504,1714722641047,-230.089133,0.000289,7]
[325322505,1714722641057,-230.089133,0.000289,7]
[325322506,1714722641067,-292.160935,0.000289,7]
[325322507,1714722641076,-151.0,0.000289,7]
[325322508,1714722641086,-292.160935,0.000289,7]
[325322509,1714722641096,-151.0,0.000289,7]
[325322510,1714722641106,-1061.510086,0.000289,7]
[325322511,1714722641116,-602.609044,0.000289,7]
[325322512,1714722641126,-1061.510086,0.000289,7]
[325322513,1714722641136,-602.609044,0.000289,7]
[325322514,1714722641145,-214.115582,0.000289,7]
[325322515,1714722641157,-214.115582,0.000289,7]
[325322516,1714722641167,-151.0,0.000289,7]
[325322517,1714722641176,-775.869055,0.000289,7]
[325322518,1714722641186,-775.869055,0.000289,7]
[325322519,1714722641196,-151.0,0.000289,7]
[325322520,1714722641206,-789.489464,0.000289,7]
[325322521,1714722641215,-789.489464,0.000289,7]
[325322522,1714722641225,-151.69339481,0.00028948,2]
[325322523,1714722641234,-1000.0,0.00028948,14]
[325322524,1714722641252,-212.0,0.0002898,2]
[325322525,1714722641261,-1000.0,0.00029,2]
[325322526,1714722641271,-516.50586373,0.00029,2]
[325322527,1714722641282,-494.61744477,0.00029,2]
[325322528,1714722641292,-2819.32,0.00029041,5]
[325322529,1714722641302,-151.0,0.00029041,7]
[325322530,1714722641311,-789.489464,0.00029041,7]
[325322531,1714722641323,-789.489464,0.00029041,7]
[325322532,1714722641333,-207.0,0.0002906,2]
[325322533,1714722641343,-150.0,0.00029092,2]
[325322534,1714722641353,-151.24,0.0002911,2]
[325322535,1714722641362,-230.089133,0.00029118,7]
[325322536,1714722641371,-292.160935,0.00029118,7]
[325322537,1714722641380,-230.089133,0.00029118,7]
[325322538,1714722641390,-292.160935,0.00029118,7]
[325322539,1714722641400,-151.0,0.00029118,7]
[325322540,1714722641411,-1061.510086,0.00029118,7]
[325322541,1714722641421,-602.609044,0.00029118,7]
[325322542,1714722641430,-602.609044,0.00029118,7]
[325322543,1714722641439,-1061.510086,0.00029118,7]
[325322544,1714722641449,-214.115582,0.00029118,7]
[325322545,1714722641458,-214.115582,0.00029118,7]
[325322546,1714722641468,-152.872891,0.00029118,7]
[325322547,1714722641477,-775.869055,0.00029118,7]
[325322548,1714722641487,-775.869055,0.00029118,7]
[325322549,1714722641497,-10000.0,0.00029118,2]
[325322550,1714722641507,-224.55259295,0.00029206,2]
[325322551,1714722641516,-151.69339481,0.00029208,2]
[325322552,1714722641526,-6011.96951905,0.00029218,2]
[325322553,1714722641535,-5000.0,0.00029218,2]
[325322554,1714722641546,-5000.0,0.00029218,2]
[325322555,1714722641556,-151.0,0.00029258,7]
[325322556,1714722641566,-8541.306709,0.00029258,7]
[325322557,1714722641575,-8541.306709,0.00029258,7]
[325322558,1714722641585,-276.394874,0.00029258,7]
[325322559,1714722641594,-215.386913,0.00029258,7]
[325322560,1714722641603,-276.394874,0.00029258,7]
[325322561,1714722641613,-151.0,0.00029258,7]
[325322562,1714722641622,-215.386913,0.00029258,7]
[325322563,1714722641631,-753.220237,0.00029258,7]
[325322564,1714722641640,-753.220237,0.00029258,7]
[325322565,1714722641649,-151.0,0.00029258,7]
[325322566,1714722641659,-162.608132,0.00029258,7]
[325322567,1714722641668,-221.974808,0.00029258,7]
[325322568,1714722641677,-162.608132,0.00029258,7]
[325322569,1714722641686,-221.974808,0.00029258,7]
[325322570,1714722641696,-151.0,0.00029258,7]
[325322571,1714722641705,-1000.0,0.00029258,14]
[325322572,1714722641714,-300.0,0.00029277,2]
[325322573,1714722641723,-2100.0,0.00029277,2]
[325322574,1714722641732,-161.429294,0.000294,2]
[325322575,1714722641741,-696.488061,0.00029499,7]
[325322576,1714722641750,-696.488061,0.00029499,7]
[325322577,1714722641760,-151.0,0.00029499,7]
[325322578,1714722641769,-151.0,0.00029499,7]
[325322579,1714722641778,-151.0,0.00029499,7]
[325322580,1714722641787,-267.403535,0.00029499,7]
[325322581,1714722641796,-267.403535,0.00029499,7]
[325322582,1714722641805,-1011.14,0.00029499,2]
[325322583,1714722641815,-6282.14,0.00029499,2]
[325322584,1714722641824,-159809.22888372,0.000295,7]
[325322585,1714722641840,-29398.18105179,0.000295,7]
[325322586,1714722642448,-7739.73199862,0.000295,7]
[325322587,1714722642459,-504.36232548,0.000295,7]
[325322588,1714722642471,-9764.46299382,0.000295,7]
[325322589,1714722642481,-1774.16,0.000295,2]
[325322590,1714722642491,-1462.8,0.000295,2]
[325322591,1714722642500,-163.478102,0.000295,7]
[325322592,1714722642510,-308.0,0.000295,2]
[325322593,1714722642519,-163.478102,0.000295,7]
[325322594,1714722642528,-156.03786,0.000295,7]
[325322595,1714722642537,-153.456011,0.000295,7]
[325322596,1714722642547,-156.03786,0.000295,7]
[325322597,1714722642556,-153.456011,0.000295,7]
[325322598,1714722642565,-237.016386,0.000295,7]
[325322599,1714722642574,-237.016386,0.000295,7]
[325322600,1714722642583,-104.60028818,0.000295,7]
[325322601,1714722642595,-154.12306682,0.000295,7]
[325322602,1714722642604,-183.458591,0.000295,7]
[325322603,1714722642614,-258.723355,0.000295,7]
[325322604,1714722642623,-151.0,0.000295,7]
[325322605,1714722642632,-151.0,0.000295,7]
[325322606,1714722642642,-183.458591,0.000295,7]
[325322607,1714722642653,-151.0,0.000295,7]
[325322608,1714722642664,-151.0,0.000295,7]
[325322609,1714722642673,-151.0,0.000295,7]
[325322610,1714722642683,-783.0,0.000295,2]
[325322612,1714722642692,-968.673926,0.000295,7]
[325322614,1714722642701,-968.673926,0.000295,7]
[325322615,1714722642711,-696.488061,0.000295,7]
[325322617,1714722642721,-696.488061,0.000295,7]
[325322619,1714722642730,-151.0,0.000295,7]
[325322621,1714722642740,-151.0,0.000295,7]
[325322623,1714722642749,-151.0,0.000295,7]
[325322624,1714722642759,-267.403535,0.000295,7]
[325322625,1714722642768,-268.761842,0.000295,7]
[325322626,1714722642777,-267.403535,0.000295,7]
[325322627,1714722642785,-8541.306709,0.000295,7]
[325322628,1714722642795,-8541.306709,0.000295,7]
[325322629,1714722642804,-276.394874,0.000295,7]
[325322630,1714722642813,-215.386913,0.000295,7]
[325322631,1714722642822,-276.394874,0.000295,7]
[325322632,1714722642831,-158.435275,0.000295,7]
[325322633,1714722642840,-215.386913,0.000295,7]
[325322634,1714722642850,-753.220237,0.000295,7]
[325322635,1714722642859,-753.220237,0.000295,7]
[325322636,1714722642868,-151.0,0.000295,7]
[325322637,1714722642878,-162.608132,0.000295,7]
[325322638,1714722642887,-221.974808,0.000295,7]
[325322639,1714722642896,-162.608132,0.000295,7]
[325322640,1714722642906,-221.974808,0.000295,7]
[325322641,1714722642915,-230.089133,0.000295,7]
[325322642,1714722642924,-292.160935,0.000295,7]
[325322643,1714722642934,-230.089133,0.000295,7]
[325322644,1714722642943,-151.0,0.000295,7]
[325322645,1714722642952,-292.160935,0.000295,7]
[325322646,1714722642961,-151.0,0.000295,7]
[325322647,1714722642970,-1061.510086,0.000295,7]
[325322648,1714722642979,-602.609044,0.000295,7]
[325322649,1714722642988,-602.609044,0.000295,7]
[325322650,1714722642997,-1061.510086,0.000295,7]
[325322651,1714722643006,-214.115582,0.000295,7]
[325322652,1714722643015,-214.115582,0.000295,7]
[325322653,1714722643024,-775.869055,0.000295,7]
[325322654,1714722643033,-775.869055,0.000295,7]
[325322655,1714722643043,-151.0,0.000295,7]
[325322656,1714722643052,-789.489464,0.000295,7]
[325322657,1714722643061,-443.0,0.000295,2]
[325322658,1714722643070,-447.75133847,0.000295,7]
[325322659,1714722643083,-327.10679971,0.000295,7]
[325322660,1714722643095,-14.63132582,0.000295,7]
[325322661,1714722643104,-163.06,0.00029534,2]
[325322662,1714722643113,-151.69339481,0.00029539,2]
[325322663,1714722643123,-210.83065434,0.0002955,2]
[325322664,1714722643132,-1000.0,0.00029568,14]
[325322665,1714722643142,-151.87422436,0.00029577,2]
[325322666,1714722643151,-2819.32,0.00029589,6]
[325322667,1714722643162,-152.45513135,0.00029654,2]
[325322668,1714722643171,-155.45369754,0.00029702,2]
[325322669,1714722643180,-169.89943947,0.00029795,2]
[325322670,1714722643190,-233.08814576,0.00029795,2]
[325322671,1714722643199,-230.66067956,0.00029795,2]
[325322672,1714722643208,-188.91776928,0.00029795,2]
[325322673,1714722643217,-6024.4305008,0.00029795,2]
[325322674,1714722643228,-164.28485939,0.00029795,2]
[325322675,1714722643238,-2437.83256211,0.00029795,2]
[325322676,1714722643250,-300.7825785,0.0002985,2]
[325322677,1714722643261,-270.22265805,0.0002985,2]
[325322678,1714722643276,-428.99476345,0.0002985,2]
[325322679,1714722643287,-531.8101814,0.00029879,14]
[325322680,1714722643301,-468.1898186,0.00029879,14]
[325322681,1714722643313,-200.323743,0.00029936,2]
[325322682,1714722643322,-6282.14,0.00029999,2]
[325322683,1714722643332,-587.75100563,0.00029999,2]
[325322684,1714722643341,-500.0,0.00029999,2]
[325322685,1714722643350,-297.11062699,0.00029999,2]
[325322686,1714722643360,-500.0,0.00029999,2]
[325322687,1714722643369,-500.0,0.00029999,2]
[325322688,1714722643379,-500.0,0.00029999,2]
[325322689,1714722643389,-108801.95474843,0.00029999,2]
[325322690,1714722643400,-477.0000008,0.00029999,2]
[325322694,1714722644749,-309218.25768783,0.00029999,2]
[325322695,1714722645420,-435.77363792,0.00029999,2]
[325322696,1714722645433,-837.85090234,0.00029999,2]
[325322697,1714722645445,-101665.93974069,0.00029999,2]
[325322698,1714722645457,-489.54923633,0.00029999,2]
[325322699,1714722645533,-42545.82122478,0.00029999,2]
[325322700,1714722645543,-2499.72407074,0.0003,2]
[325322702,1714722645553,-775.68441092,0.0003,4]
[325322704,1714722645563,-19345.06977726,0.0003,4]
[325322706,1714722645572,-5676.09590551,0.0003,2]
[325322708,1714722645582,-19474.71885862,0.0003,2]
[325322709,1714722645591,-649.3972014,0.0003,4]
[325322710,1714722645600,-234.49941582,0.0003,60]
[325322712,1714722645610,-207.0,0.0003,2]
[325322714,1714722645623,-668.87,0.000301,2]
[325322716,1714722645632,-150.0,0.00030103,120]
[325322717,1714722645642,-10000.0,0.0003012,2]
[325322718,1714722645652,-2819.32,0.00030136,7]
[325322719,1714722645663,-200.0,0.00030137,2]
[325322721,1714722645673,-1000.0,0.00030189,14]
[325322722,1714722645683,-151.69339481,0.00030191,7]
[325322723,1714722645693,-180.0,0.00030258,2]
[325322724,1714722645702,-154.51082582,0.00030263,7]
[325322725,1714722645712,-158.8767796,0.00030283,7]
[325322726,1714722645721,-200.323743,0.0003031,2]
[325322727,1714722645731,-212.0,0.0003037,2]
[325322728,1714722645741,-154.51082582,0.0003042,7]
[325322729,1714722645750,-1011.14,0.00030439,2]
[325322730,1714722645760,-201.0,0.0003044,2]
[325322731,1714722645770,-207.0,0.0003044,2]
[325322732,1714722645779,-288.0,0.00030457,2]
[325322733,1714722645789,-151.69339481,0.00030461,7]
[325322734,1714722645798,-151.87422436,0.00030465,2]
[325322735,1714722645808,-151.69339481,0.00030489,7]
[325322736,1714722645817,-1000.0,0.00030499,14]
[325322737,1714722645827,-1774.16,0.000305,2]
[325322739,1714722645836,-151.69339481,0.00030607,7]
[325322741,1714722645846,-152.45513135,0.00030618,2]
[325322742,1714722645856,-257.41,0.00030642,120]
[325322743,1714722645866,-151.69339481,0.00030655,7]
[325322744,1714722645876,-2819.32,0.00030684,8]
[325322746,1714722645886,-200.323743,0.00030684,2]
[325322748,1714722645896,-152.94889584,0.0003069,7]
[325322749,1714722645906,-5000.0,0.000307,2]
[325322751,1714722645916,-155.45369754,0.00030759,7]
[325322753,1714722645926,-152.10473111,0.000308,7]
[325322756,1714722645936,-1000.0,0.00030809,14]
[325322758,1714722645945,-155.45369754,0.00030876,7]
[325322759,1714722645955,-1000.0,0.00030899,2]
[325322761,1714722645965,-169.89943947,0.000309,2]
[325322763,1714722645974,-161.429294,0.000309,2]
[325322765,1714722645985,-230.089133,0.000309,7]
[325322767,1714722645995,-233.08814576,0.000309,2]
[325322770,1714722646004,-292.160935,0.000309,7]